fUST/lending_fUST_20250924
["ID","MTS","AMOUNT","RATE_DAILY","PERIOD"]
[387297248,1758682241950,-306.0,0.00026121,10]
[387297250,1758682241959,-583.52,0.00026121,10]
[387297252,1758682241969,-480.0,0.00026131,2]
[387297254,1758682241979,-480.0,0.00026131,2]
[387297256,1758682241989,-480.0,0.00026235,2]
[387297258,1758682241999,-278.76808453,0.00026331,5]
[387297260,1758682242010,-480.0,0.00026405,2]
[387297262,1758682242019,-258.36018809,0.00026509,2]
[387297264,1758682242030,-480.0,0.00026679,2]
[387297266,1758682242040,-168.0,0.00026897,2]
[387297268,1758682242050,-480.0,0.00026953,2]
[387297270,1758682242061,-745.0,0.00026995,2]
[387297272,1758682242072,-531.78707685,0.00027227,2]
[387297274,1758682242082,-278.76808453,0.00027403,7]
[387297276,1758682242094,-480.0,0.00027671,2]
[387297278,1758682242104,-482.30539058,0.00027671,2]
[387297280,1758682242114,-200.52286048,0.00027714,2]
[387297282,1758682242124,-13519.00898221,0.00027732,2]
[387297284,1758682242148,-374.32049367,0.00027732,2]
[387297286,1758682242161,-5003.68803984,0.00027732,2]
[387297289,1758682242178,-508.85394405,0.00024729,2]
[387297291,1758682242187,-73672.63424768,0.00027732,2]
[387297293,1758682242197,-500.0,0.00027739,2]
[387297295,1758682242206,-446.82703874,0.00027739,2]
[387297297,1758682242216,-1187.7,0.00027741,2]
[387297299,1758682242225,-7426.19,0.00027864,2]
[387297301,1758682242235,-25909.93807724,0.00027925,2]
[387297425,1758682243410,-1500.47152399,0.00027925,2]
[387297438,1758682243529,-65159.24216217,0.00027925,2]
[387297440,1758682243539,-517.26,0.00027945,2]
[387297442,1758682243550,-150.0,0.00027973,5]
[387297444,1758682243560,-726.0,0.00028,120]
[387297446,1758682243572,-2000.0,0.00028,2]
[387297448,1758682243581,-168.0,0.00028124,2]
[387297449,1758682243591,-418.64,0.00028219,14]
[387297451,1758682243601,-1000.0,0.0002828,5]
[387297453,1758682243611,-929.32432589,0.0002828,20]
[387297455,1758682243621,-309.4381603,0.00028307,2]
[387297457,1758682243639,-278.76808453,0.00028475,9]
[387297459,1758682243648,-250.0,0.00028521,5]
[387297461,1758682243658,-418.64,0.00028904,15]
[387297463,1758682243667,-750.0,0.00029,120]
[387297465,1758682243676,-166.03865211,0.00029,30]
[387297476,1758682243780,-771.69056206,0.00029,2]
[387297478,1758682243789,-771.69056205,0.00029039,2]
[387297480,1758682243799,-38547.43685359,0.00029067,2]
[387297483,1758682243814,-647.68,0.00029067,2]
[387297485,1758682243825,-53086.39792458,0.00029067,2]
[387297487,1758682243837,-288.13698523,0.00029067,2]
[387297489,1758682243846,-350.0,0.00029068,5]
[387297491,1758682243855,-771.69056205,0.00029077,2]
[387297493,1758682243865,-471.34196372,0.00029077,2]
[387297726,1758682246342,-480.0,0.00022811,2]
[387297728,1758682246354,-150.133,0.00023078,2]
[387297730,1758682246364,-484.02968452,0.00023085,2]
[387297732,1758682246374,-482.25851186,0.00027671,2]
[387297734,1758682246391,-9507.1761178,0.00029077,2]
[387297736,1758682246409,-12056.12316092,0.0002908,2]
[387297738,1758682246421,-5126.71557159,0.0002908,2]
[387297740,1758682246434,-1072.81722564,0.0002908,2]
[387297745,1758682246467,-518.88,0.0002908,2]
[387297752,1758682246523,-2281.28905335,0.0002908,2]
[387299892,1758682737762,239.20275,0.00025,120]
[387299918,1758683059284,395.25286522,0.00026137,120]
[387299920,1758683367034,-338.32648684,0.000199,2]
[387299921,1758683367056,-1295.2,0.00020358,2]
[387299922,1758683367080,-338.32648682,0.00020972,2]
[387299923,1758683367102,-160.0,0.00021578,2]
[387299924,1758683367128,-532.2324375,0.00021578,2]
[387299925,1758683367150,-233.62170814,0.00021578,2]
[387299926,1758683367172,-338.32648682,0.00022044,2]
[387299927,1758683367193,-2590.4,0.00022209,2]
[387299928,1758683367213,-488.66616061,0.00022811,2]
[387299929,1758683367234,-480.0,0.00022811,2]
[387299930,1758683367255,-480.0,0.00022811,2]
[387299931,1758683367275,-480.0,0.00022811,2]
[387299932,1758683367296,-480.0,0.00022811,2]
[387299933,1758683367316,-421.59385843,0.00022811,2]
[387299968,1758683432521,-1245.75,0.00020377,2]
[387299970,1758683432532,-2491.49,0.00022229,2]
[387299972,1758683432542,-58.40614157,0.00022811,2]
[387299974,1758683432555,-290.88671215,0.00022811,2]
[387299976,1758683432564,-480.0,0.00023077,2]
[387299978,1758683432574,-480.0,0.00023077,2]
[387299980,1758683432584,-480.0,0.00023077,2]
[387299982,1758683432594,-481.18689867,0.00023077,2]
[387299984,1758683432605,-480.0,0.00023077,2]
[387299986,1758683432615,-491.59079289,0.00023077,2]
[387299988,1758683432624,-150.165,0.00023078,2]
[387299990,1758683432634,-150.0,0.00023078,2]
[387299992,1758683432644,-410.0,0.00023078,2]
[387299995,1758683432654,-480.0,0.00023085,2]
[387299998,1758683432663,-480.0,0.00023085,2]
[387300000,1758683432675,-480.0,0.00023115,2]
[387300003,1758683432685,-443.39408031,0.00023115,2]
[387300005,1758683432694,-480.0,0.00023115,2]
[387300007,1758683432703,-480.0,0.00023115,2]
[387300009,1758683432712,-480.0,0.00023115,2]
[387300011,1758683432722,-480.0,0.00023115,2]
[387300013,1758683432731,-480.0,0.00023115,2]
[387300015,1758683432741,-494.98440303,0.00023115,2]
[387300017,1758683432750,-480.0,0.00023115,2]
[387300019,1758683432759,-480.0,0.00023115,2]
[387300020,1758683432769,-480.0,0.00023115,2]
[387300022,1758683432778,-480.0,0.00023115,2]
[387300024,1758683432788,-493.44380613,0.00023115,2]
[387300026,1758683432797,-338.32648682,0.00023116,2]
[387300028,1758683432807,-507.21311557,0.00023116,2]
[387300030,1758683432816,-480.0,0.00023116,2]
[387300031,1758683432828,-480.0,0.00023116,2]
[387300032,1758683432838,-480.0,0.00023116,2]
[387300034,1758683432847,-480.0,0.00023116,2]
[387300036,1758683432858,-480.0,0.00023116,2]
[387300038,1758683432869,-514.11462843,0.00023116,2]
[387300040,1758683432879,-480.0,0.00023116,2]
[387300042,1758683432888,-487.07365797,0.00023116,2]
[387300045,1758683432900,-486.94105232,0.00023116,2]
[387300047,1758683432910,-484.55429225,0.00023116,2]
[387300049,1758683432921,-487.32592661,0.00023116,2]
[387300051,1758683432930,-400.0,0.00023116,2]
[387300053,1758683432939,-486.93570008,0.00023116,2]
[387300055,1758683432950,-483.52795974,0.00023116,2]
[387300057,1758683432960,-487.14729963,0.00023116,2]
[387300059,1758683432969,-480.0,0.00023116,2]
[387300061,1758683432979,-486.57984298,0.00023116,2]
[387300063,1758683432989,-489.41110211,0.00023116,2]
[387300064,1758683432998,-446.1140742,0.00023116,2]
[387300065,1758683433008,-480.0,0.00023116,2]
[387300066,1758683433018,-480.0,0.00023116,2]
[387300067,1758683433028,-482.98263017,0.00023116,2]
[387300068,1758683433039,-480.0,0.00023116,2]
[387300069,1758683433050,-480.0,0.00023116,2]
[387300070,1758683433060,-480.0,0.00023116,2]
[387300071,1758683433071,-480.0,0.00023116,2]
[387300072,1758683433082,-480.0,0.00023116,2]
[387300073,1758683433093,-485.0322203,0.00023116,2]
[387300074,1758683433103,-499.87390465,0.00023116,2]
[387300075,1758683433114,-483.5239625,0.00023116,2]
[387300076,1758683433124,-485.24360373,0.00023116,2]
[387300077,1758683433139,-481.45166183,0.00023116,2]
[387300078,1758683433158,-485.66988117,0.00023116,2]
[387300079,1758683433171,-480.0,0.00023116,2]
[387300080,1758683433181,-485.83394404,0.00023116,2]
[387300081,1758683433191,-480.55235515,0.00023116,2]
[387300082,1758683433200,-480.0,0.00023116,2]
[387300083,1758683433210,-486.87371353,0.00023116,2]
[387300084,1758683433220,-509.72644693,0.00023116,2]
[387300085,1758683433230,-484.10499871,0.00023116,2]
[387300086,1758683433239,-495.86609669,0.00023116,2]
[387300087,1758683433249,-480.0,0.00023116,2]
[387300088,1758683433259,-480.0,0.00023116,2]
[387300089,1758683433397,-734.85,0.00023116,2]
[387300090,1758683433413,-586.11277119,0.00023116,2]
[387300091,1758683433424,-480.0,0.00023116,2]
[387300092,1758683433434,-493.63269264,0.00023117,2]
[387300093,1758683433444,-484.17278265,0.00023117,2]
[387300094,1758683433454,-499.18984561,0.00023117,2]
[387300095,1758683433464,-442.43731859,0.00023117,2]
[387300096,1758683433473,-480.0,0.00023117,2]
[387300097,1758683433483,-484.53891507,0.00023117,2]
[387300098,1758683433493,-491.17111497,0.00023117,2]
[387300099,1758683433504,-480.0,0.00023117,2]
[387300100,1758683433514,-485.43296554,0.00023117,2]
[387300101,1758683433524,-480.0,0.00023117,2]
[387300102,1758683433534,-482.92167447,0.00023117,2]
[387300103,1758683433544,-483.13756871,0.00023117,2]
[387300104,1758683433554,-497.13677196,0.00023117,2]
[387300105,1758683433564,-501.34917079,0.00023117,2]
[387300106,1758683433574,-483.98961217,0.00023117,2]
[387300107,1758683433583,-483.34702964,0.00023117,2]
[387300108,1758683433593,-481.52854002,0.0002335,2]
[387300109,1758683433602,-610.53776884,0.0002335,2]
[387300110,1758683433611,-476.48066042,0.0002335,2]
[387300111,1758683433621,-480.0,0.00023351,2]
[387300112,1758683433630,-480.0,0.00023351,2]
[387300113,1758683433639,-480.0,0.00023359,2]
[387300114,1758683433649,-480.0,0.00023359,2]
[387300115,1758683433658,-480.0,0.00023389,2]
[387300116,1758683433669,-297.42,0.00023389,2]
[387300117,1758683433678,-506.73,0.00023389,2]
[387300118,1758683433687,-480.0,0.00023389,2]
[387300119,1758683433697,-480.0,0.00023389,2]
[387300120,1758683433706,-480.0,0.00023389,2]
[387300121,1758683433715,-323.32972362,0.00023389,2]
[387300122,1758683433728,-156.67027638,0.00023389,2]
[387300123,1758683433738,-480.0,0.00023389,2]
[387300124,1758683433747,-204.93312432,0.00023389,2]
[387300125,1758683433759,-89.21597751,0.00023389,2]
[387300126,1758683433769,-195.68879043,0.0002339,2]
[387300182,1758683438671,-295.89938806,0.0002339,2]
[387300184,1758683438681,-480.0,0.0002339,2]
[387300186,1758683438691,-505.09,0.0002339,2]
[387300188,1758683438701,-73.64715415,0.0002339,2]
[387300191,1758683438777,-661.20284585,0.0002339,2]
[387300192,1758683438787,-490.6499403,0.00023623,2]
[387300193,1758683438798,-480.0,0.00023623,2]
[387300194,1758683438810,-480.0,0.00023623,2]
[387300195,1758683438821,-480.0,0.00023623,2]
[387300196,1758683438836,-490.80678918,0.00023625,2]
[387300197,1758683438847,-471.61,0.00023625,2]
[387300198,1758683438858,-480.0,0.00023633,2]
[387300200,1758683438869,-480.0,0.00023633,2]
[387300201,1758683438880,-480.0,0.00023663,2]
[387300202,1758683438890,-480.0,0.00023663,2]
[387300203,1758683438899,-231.05,0.00023663,2]
[387300204,1758683438910,-734.85,0.00023664,2]
[387300205,1758683438920,-480.0,0.00023897,2]
[387300206,1758683438931,-480.0,0.00023907,2]
[387300208,1758683438941,-179.41,0.00023927,5]
[387300209,1758683438951,-480.0,0.00023937,2]
[387300210,1758683438961,-480.0,0.00023937,2]
[387300211,1758683438971,-734.85,0.00023938,2]
[387300212,1758683438980,-584.74,0.00024043,2]
[387300213,1758683438990,-494.18387477,0.00024043,2]
[387300214,1758683439000,-623.94236298,0.00024043,2]
[387300215,1758683439010,-3737.24,0.00024082,2]
[387300216,1758683439022,-480.0,0.00024181,2]
[387300217,1758683439033,-338.32648682,0.00024187,2]
[387300218,1758683439043,-480.0,0.00024211,2]
[387300219,1758683439053,-480.0,0.00024211,2]
[387300220,1758683439064,-734.85,0.00024212,2]
[387300221,1758683439074,-480.0,0.00024455,2]
[387300222,1758683439084,-480.0,0.00024485,2]
[387300223,1758683439095,-480.0,0.00024485,2]
[387300224,1758683439106,-734.85,0.00024486,2]
[387300225,1758683439116,-170.84533791,0.00024658,2]
[387300226,1758683439125,-480.0,0.00024729,2]
[387300227,1758683439135,-480.0,0.00024759,2]
[387300228,1758683439145,-480.0,0.00024759,2]
[387300229,1758683439155,-734.85,0.0002476,2]
[387300230,1758683439164,-480.0,0.00025003,2]
[387300231,1758683439174,-480.0,0.00025033,2]
[387300232,1758683439184,-446.81,0.00025033,2]
[387300233,1758683439195,-734.85,0.00025034,2]
[387300234,1758683439207,-2000.0,0.000252,2]
[387300235,1758683439216,-160.0,0.0002525,2]
[387300236,1758683439227,-338.32648682,0.00025259,3]
[387300237,1758683439237,-491.76998759,0.00025277,2]
[387300238,1758683439248,-480.0,0.00025307,2]
[387300239,1758683439258,-734.85,0.00025308,2]
[387300240,1758683439267,-480.0,0.00025581,2]
[387300241,1758683439277,-734.85,0.00025582,2]
[387300242,1758683439288,-260.0,0.00025798,2]
[387300243,1758683439298,-480.0,0.00025855,2]
[387300244,1758683439308,-734.85,0.00025856,2]
[387300245,1758683439318,-4982.98,0.00025934,2]
[387300246,1758683439328,-894.04418528,0.00026006,16]
[387300247,1758683439338,-150.0,0.00026078,2]
[387300248,1758683439348,-202.85639462,0.00026085,2]
[387300249,1758683439358,-480.0,0.00026129,2]
[387300250,1758683439368,-734.85,0.0002613,2]
[387300251,1758683439379,-338.32648682,0.00026331,5]
[387300252,1758683439389,-360.0,0.00026346,2]
[387300253,1758683439399,-480.0,0.00026403,2]
[387300254,1758683439409,-734.85,0.00026404,2]
[387300255,1758683439420,-480.0,0.00026677,2]
[387300256,1758683439430,-734.85,0.00026678,2]
[387300257,1758683439440,-460.0,0.00026894,2]
[387300258,1758683439451,-480.0,0.00026951,2]
[387300259,1758683439461,-734.85,0.00026952,2]
[387300260,1758683439470,-480.0,0.00027225,2]
[387300261,1758683439479,-734.85,0.00027226,2]
[387300262,1758683439488,-258.79,0.0002733,10]
[387300263,1758683439498,-1653.420981,0.0002734,5]
[387300264,1758683439508,-1000.0,0.0002736,5]
[387300265,1758683439517,-1000.0,0.0002738,5]
[387300266,1758683439526,-1157.432603,0.0002738,5]
[387300267,1758683439535,-1000.0,0.000274,5]
[387300268,1758683439545,-1000.0,0.000274,5]
[387300269,1758683439554,-204.993125,0.000274,2]
[387300270,1758683439564,-338.32648682,0.00027403,7]
[387300271,1758683439573,-560.0,0.00027442,2]
[387300272,1758683439583,-480.0,0.00027499,2]
[387300273,1758683439593,-734.85,0.000275,2]
[387300274,1758683439602,-372.66,0.00027661,10]
[387300275,1758683439612,-172.52844095,0.00027662,2]
[387300276,1758683439622,-480.0,0.00027671,2]
[387300277,1758683439632,-483.41324128,0.00027671,2]
[387300278,1758683439642,-480.0,0.00027671,2]
[387300279,1758683439652,-482.5484263,0.00027671,2]
[387300280,1758683439662,-480.54875517,0.00027671,2]
[387300281,1758683439672,-571.96116757,0.00027671,2]
[387300282,1758683439684,-480.0,0.00027671,2]
[387300283,1758683439694,-480.0,0.00027671,2]
[387300284,1758683439703,-480.0,0.00027671,2]
[387300285,1758683439715,-482.36938585,0.00027671,2]
[387300286,1758683439725,-480.0,0.00027671,2]
[387300287,1758683439735,-310.55,0.00027732,10]
[387300288,1758683439746,-195.42,0.00027742,10]
[387300289,1758683439755,-500.0,0.00027751,2]
[387300290,1758683439765,-168.23874307,0.00027751,2]
[387300291,1758683439774,-162.77892711,0.00027751,2]
[387300293,1758683439784,-500.0,0.00027751,2]
[387300294,1758683439794,-163.8738033,0.00027751,2]
[387300295,1758683439804,-77631.4127483,0.00027752,2]
[387300296,1758683439814,-480.0,0.00027773,2]
[387300297,1758683439825,-734.85,0.00027774,2]
[387300298,1758683439839,-734.19,0.00027776,3]
[387300299,1758683439849,-6228.73,0.00027786,2]
[387300300,1758683439859,-1138.21,0.00027863,2]
[387300301,1758683439872,-620.0,0.0002799,2]
[387300302,1758683439883,-239.20275,0.00028,120]
[387300303,1758683439894,-239.20275,0.00028,5]
[387300304,1758683439906,-239.20275,0.00028,5]
[387300305,1758683439917,-600.0,0.00028016,2]
[387300306,1758683439928,-480.0,0.00028047,2]
[387300307,1758683439938,-734.85,0.00028048,2]
[387300308,1758683439948,-1000.888915,0.000281,2]
[387300309,1758683439957,-1000.0,0.0002818,5]
[387300310,1758683439970,-383.75,0.00028219,14]
[387300311,1758683439980,-1000.0,0.0002826,5]
[387300313,1758683439991,-357.13178225,0.00028307,2]
[387300315,1758683440001,-480.0,0.00028321,2]
[387300316,1758683440016,-734.85,0.00028322,2]
[387300317,1758683440026,-338.32648682,0.00028475,9]
[387300318,1758683440037,-168.0,0.00028538,2]
[387300320,1758683440046,-480.0,0.00028595,2]
[387300321,1758683440055,-734.85,0.00028596,2]
[387300322,1758683440065,-1000.0,0.000286,2]
[387300323,1758683440074,-418.78,0.00028869,2]
[387300324,1758683440084,-734.85,0.0002887,2]
[387300325,1758683440095,-383.75,0.00028904,15]
[387300326,1758683440105,-5032.90559665,0.00029,30]
[387300327,1758683440115,-200.41832686,0.00029,2]
[387300328,1758683440125,-200.41832685,0.0002904,2]
[387300329,1758683440136,-9642.15846654,0.00029079,2]
[387300330,1758683440147,-172.52844095,0.00029079,2]
[387300331,1758683440156,-200.41832685,0.00029079,2]
[387300332,1758683440166,-77631.4127483,0.0002909,2]
[387300333,1758683440177,-31020.47038426,0.000291,14]
[387300334,1758683440186,-166.0,0.000291,30]
[387300335,1758683440196,-1000.0,0.000291,2]
[387300336,1758683440205,-151.0,0.00029134,2]
[387300337,1758683440215,-151.0,0.00029134,2]
[387300338,1758683440224,-201.10484078,0.00029134,2]
[387300339,1758683440234,-151.0,0.00029134,2]
[387300340,1758683440243,-151.0,0.00029134,2]
[387300341,1758683440253,-151.0,0.00029134,2]
[387300342,1758683440263,-500.0,0.00029134,2]
[387300343,1758683440272,-500.0,0.00029134,2]
[387300344,1758683440282,-151.0,0.00029134,2]
[387300345,1758683440292,-151.0,0.00029134,2]
[387300346,1758683440301,-207.41484431,0.00029134,2]
[387300347,1758683440310,-151.0,0.00029134,2]
[387300348,1758683440321,-151.0,0.00029134,2]
[387300349,1758683440330,-151.0,0.00029134,2]
[387300350,1758683440339,-734.85,0.00029144,2]
[387300351,1758683440349,-150.0,0.00029173,5]
[387300352,1758683440359,-176.673379,0.00029175,14]
[387300353,1758683440368,-233.62170814,0.00029177,30]
[387300354,1758683440377,-160.0,0.00029177,30]
[387300355,1758683440387,-532.2324375,0.00029177,30]
[387300356,1758683440397,-5720.64155497,0.00029179,2]
[387300357,1758683440407,-10000.0,0.00029179,60]
[387300358,1758683440417,-99351.15080694,0.00029179,20]
[387300359,1758683440578,-38251.65937226,0.00029179,20]
[387300360,1758683440637,-1045.70416009,0.00029179,20]
[387300624,1758683443638,-532.2324375,0.00021578,2]
[387300626,1758683443648,-540.5,0.00023115,2]
[387300628,1758683443657,-480.0,0.00023117,2]
[387300630,1758683443666,-41721.37240328,0.00029179,20]
[387300913,1758683446474,-480.0,0.00023115,2]
[387300916,1758683446484,-480.0,0.00023115,2]
[387300918,1758683446493,-491.75705576,0.00023116,2]
[387300920,1758683446503,-480.0,0.00023389,2]
[387300922,1758683446512,-480.0,0.00023391,2]
[387300924,1758683446522,-101.81211474,0.00023663,2]
[387300926,1758683446533,-378.18788526,0.00023663,2]
[387300928,1758683446543,-480.0,0.00023665,2]
[387300930,1758683446552,-265.88,0.00023937,2]
[387300932,1758683446562,-480.0,0.00023939,2]
[387300934,1758683446571,-1.38211474,0.00029179,20]
[387300936,1758683446582,-1411.85,0.00029179,20]
[387300938,1758683446593,-21646.04413677,0.00029179,20]
[387301885,1758684141454,509.53456345,0.00029205,120]
[387301899,1758684396632,155.0,0.00024,120]
[387301900,1758684398075,155.0,0.000263,120]
[387301902,1758684442090,-159.00049516,0.00019352,2]
[387301905,1758684555149,-2839.89275921,0.00019352,2]
[387301906,1758684555170,-1297.68,0.00020563,2]
[387301907,1758684555192,-532.2324375,0.00021605,2]
[387301908,1758684555222,-417.15472785,0.00021605,2]
[387301909,1758684555244,-153.0,0.00022,2]
[387301910,1758684555370,-188.39,0.00022189,2]
[387301911,1758684555392,-500.0,0.00022316,2]
[387301912,1758684555412,-500.0,0.00022371,2]
[387301913,1758684555433,-2595.36,0.00022432,2]
[387301914,1758684555456,-480.0,0.00022811,2]
[387301915,1758684555486,-493.85943435,0.00022811,2]
[387301916,1758684555507,-480.0,0.00022811,2]
[387301917,1758684555528,-480.99222842,0.00022811,2]
[387301918,1758684555554,-177.6423019,0.00022976,2]
[387301919,1758684555573,-160.0,0.00023,2]
[387301920,1758684555594,-188.39,0.00023,2]
[387301921,1758684555614,-155.44257954,0.00023014,2]
[387301922,1758684555635,-482.05813739,0.00023075,2]
[387301923,1758684555656,-480.0,0.00023075,2]
[387301924,1758684555677,-482.10576425,0.00023075,2]
[387301925,1758684555697,-480.0,0.00023075,2]
[387301926,1758684555724,-480.0,0.00023075,2]
[387301927,1758684555744,-480.0,0.00023075,2]
[387301928,1758684555765,-480.0,0.00023075,2]
[387301929,1758684555784,-612.79167497,0.00023076,2]
[387301930,1758684555804,-480.0,0.00023076,2]
[387301931,1758684555824,-480.0,0.00023076,2]
[387301932,1758684555843,-480.0,0.00023076,2]
[387301933,1758684555862,-480.0,0.00023076,2]
[387301934,1758684555882,-497.18397102,0.00023076,2]
[387301935,1758684555903,-480.0,0.00023076,2]
[387301936,1758684555925,-481.72896698,0.00023076,2]
[387301937,1758684555948,-480.0,0.00023076,2]
[387301938,1758684555977,-480.0,0.00023076,2]
[387301939,1758684555999,-482.01953584,0.00023076,2]
[387301940,1758684556022,-480.0,0.00023076,2]
[387301941,1758684556045,-480.0,0.00023076,2]
[387301942,1758684556066,-480.0,0.00023076,2]
[387301943,1758684556087,-482.89154335,0.00023076,2]
[387301944,1758684556109,-480.0,0.00023076,2]
[387301945,1758684556135,-480.0,0.00023076,2]
[387301946,1758684556157,-500.0,0.00023076,2]
[387301947,1758684556178,-281.87867803,0.00023076,2]
[387301948,1758684556215,-198.12132197,0.00023076,2]
[387301949,1758684556240,-480.0,0.00023076,2]
[387301950,1758684556263,-480.0,0.00023076,2]
[387301951,1758684556290,-480.0,0.00023076,2]
[387301952,1758684556318,-481.61472411,0.00023076,2]
[387301953,1758684556343,-480.0,0.00023076,2]
[387301954,1758684556367,-520.0,0.00023076,2]
[387301955,1758684556399,-480.0,0.00023076,2]
[387301956,1758684556427,-480.0,0.00023076,2]
[387301957,1758684556455,-480.0,0.00023076,2]
[387301958,1758684556493,-480.0,0.00023076,2]
[387301959,1758684556525,-480.0,0.00023076,2]
[387301960,1758684556554,-480.0,0.00023076,2]
[387301961,1758684556583,-482.58824215,0.00023076,2]
[387301962,1758684556611,-483.00946592,0.00023076,2]
[387301963,1758684556640,-421.16478336,0.00023076,2]
[387301964,1758684556670,-623.17010627,0.00023076,2]
[387301965,1758684556696,-570.94481937,0.00023076,2]
[387301966,1758684556729,-480.0,0.00023076,2]
[387301967,1758684556754,-494.88260208,0.00023076,2]
[387301968,1758684556781,-480.0,0.00023076,2]
[387301969,1758684556808,-480.0,0.00023076,2]
[387301970,1758684556837,-480.0,0.00023076,2]
[387301971,1758684556860,-480.0,0.00023076,2]
[387301972,1758684556885,-1686.9,0.00023076,2]
[387301973,1758684556917,-480.0,0.00023076,2]
[387301974,1758684556943,-480.0,0.00023076,2]
[387301975,1758684556974,-480.0,0.00023076,2]
[387301976,1758684557003,-480.0,0.00023076,2]
[387301977,1758684557027,-480.0,0.00023076,2]
[387301978,1758684557053,-488.94407061,0.00023076,2]
[387301979,1758684557078,-480.0,0.00023076,2]
[387301980,1758684557103,-480.0,0.00023076,2]
[387301981,1758684557131,-480.0,0.00023076,2]
[387301982,1758684557159,-480.0,0.00023076,2]
[387301983,1758684557187,-480.0,0.00023076,2]
[387301984,1758684557218,-601.28,0.00023076,2]
[387301985,1758684557244,-480.0,0.00023076,2]
[387301986,1758684557269,-480.0,0.00023076,2]
[387301987,1758684557295,-480.0,0.00023076,2]
[387301988,1758684557321,-480.0,0.00023076,2]
[387301989,1758684557346,-480.0,0.00023076,2]
[387301990,1758684557374,-485.41005348,0.00023076,2]
[387301991,1758684557402,-480.0,0.00023076,2]
[387301992,1758684557431,-480.0,0.00023076,2]
[387301993,1758684557458,-480.0,0.00023076,2]
[387301994,1758684557495,-480.0,0.00023076,2]
[387301995,1758684557537,-480.0,0.00023076,2]
[387301996,1758684557577,-480.0,0.00023076,2]
[387301997,1758684557614,-480.0,0.00023076,2]
[387301998,1758684557775,-480.0,0.00023076,2]
[387301999,1758684557807,-480.0,0.00023076,2]
[387302000,1758684557829,-480.0,0.00023076,2]
[387302001,1758684557851,-461.86394966,0.00023076,2]
[387302002,1758684557874,-480.0,0.00023076,2]
[387302003,1758684557894,-480.0,0.00023076,2]
[387302004,1758684557915,-480.0,0.00023076,2]
[387302005,1758684557936,-480.0,0.00023076,2]
[387302006,1758684557955,-480.0,0.00023076,2]
[387302007,1758684557982,-480.0,0.00023076,2]
[387302008,1758684558005,-480.0,0.00023076,2]
[387302009,1758684558028,-488.94093068,0.00023076,2]
[387302010,1758684558051,-480.0,0.00023076,2]
[387302011,1758684558074,-679.95,0.00023076,2]
[387302012,1758684558099,-480.0,0.00023076,2]
[387302013,1758684558124,-480.0,0.00023076,2]
[387302014,1758684558150,-480.0,0.00023076,2]
[387302015,1758684558174,-480.0,0.00023076,2]
[387302016,1758684558202,-480.0,0.00023076,2]
[387302017,1758684558234,-484.10771619,0.00023076,2]
[387302018,1758684558259,-486.37907512,0.00023076,2]
[387302019,1758684558285,-303.44258913,0.00023076,2]
[387302020,1758684558312,-480.0,0.00023076,2]
[387302021,1758684558336,-480.0,0.00023076,2]
[387302022,1758684558362,-480.0,0.00023076,2]
[387302023,1758684558388,-500.0,0.00023077,2]
[387302024,1758684558413,-483.57730556,0.00023077,2]
[387302025,1758684558436,-484.13865753,0.00023077,2]
[387302026,1758684558459,-483.70810159,0.00023077,2]